[Event "Turkish Super League 2019"]
[Site "Konya"]
[Date "2019.07.24"]
[Round "8"]
[White "Soysal, Serkan"]
[Black "Selbes, Tarik"]
[Result "1-0"]
[ECO "A49"]
[WhiteElo "2431"]
[BlackElo "2342"]
[Annotator "NA"]
[PlyCount "39"]
[EventDate "2019.07.17"]
[EventType "team-tourn"]
[EventCountry "TUR"]
[SourceTitle "playchess.com"]
[Source "ChessBase"]
[SourceQuality "1"]
[TimeControl "40/5400+30:1800+30"]

1. Nf3 Nf6 2. d4 g6 3. g3 Bg7 4. Bg2 O-O 5. O-O d6 6. a4 a5 7. Nc3 d5 8. Re1 Ne4 9. Nxe4 dxe4 10. Ng5 Bxd4 11. Nxe4 Na6 12. c3 Bg7 13. Qb3 Rb8 14. Bg5 Be6 15. Qa3 f6 16. Bf4 g5 17. Be3 h6 18. Red1 Qe8 19. Nc5 Nxc5 20. Qxc5 1-0

[Event "Turkish Super League 2019"]
[Site "Konya"]
[Date "2019.07.24"]
[Round "8"]
[White "Ozen, Deniz"]
[Black "Ozer, Omer Faruk"]
[Result "1/2-1/2"]
[ECO "B06"]
[WhiteElo "2430"]
[BlackElo "2369"]
[Annotator "NA"]
[PlyCount "100"]
[EventDate "2019.07.17"]
[EventType "team-tourn"]
[EventCountry "TUR"]
[SourceTitle "playchess.com"]
[Source "ChessBase"]
[SourceQuality "1"]
[TimeControl "40/5400+30:1800+30"]

1. e4 g6 2. d4 Bg7 3. Nc3 d6 4. Nf3 a6 5. Be2 b5 6. a4 b4 7. Nd5 a5 8. O-O e6 9. Nf4 Ne7 10. c3 Na6 11. Bb5+ c6 12. Be2 O-O 13. Be3 c5 14. Re1 Qc7 15. Rc1 Rd8 16. Bc4 bxc3 17. bxc3 h6 18. Nd3 Bb7 19. Bf4 Qc8 20. h4 Nc6 21. d5 exd5 22. exd5 Ncb8 23. Qd2 Kh7 24. Nb2 Nd7 25. Re7 Nb6 26. Rxf7 Rd7 27. Rxd7 Qxd7 28. Bb5 Qg4 29. Be2 Qf5 30. h5 Nxd5 31. hxg6+ Kh8 32. Bxh6 Qxg6 33. Bxg7+ Qxg7 34. Nc4 Rf8 35. Qg5 Nf4 36. Qxg7+ Kxg7 37. Bf1 Bxf3 38. gxf3 d5 39. Nxa5 c4 40. Nc6 Nc5 41. a5 Kf6 42. Ra1 Rg8+ 43. Kh2 Rh8+ 44. Kg1 Nb3 45. Rd1 Rg8+ 46. Kh2 Nxa5 47. Nxa5 Rh8+ 48. Kg1 Rg8+ 49. Kh2 Rh8+ 50. Kg3 Kf5 1/2-1/2

[Event "Turkish Super League 2019"]
[Site "Konya"]
[Date "2019.07.24"]
[Round "8"]
[White "Yurtseven, Melih"]
[Black "Seyhanoglu, Deniz"]
[Result "1-0"]
[ECO "E06"]
[WhiteElo "2381"]
[BlackElo "2115"]
[Annotator "NA"]
[PlyCount "153"]
[EventDate "2019.07.17"]
[EventType "team-tourn"]
[EventCountry "TUR"]
[SourceTitle "playchess.com"]
[Source "ChessBase"]
[SourceQuality "1"]
[TimeControl "40/5400+30:1800+30"]

1. Nf3 c5 2. c4 e6 3. g3 Nc6 4. Bg2 Nf6 5. O-O Be7 6. d4 d5 7. dxc5 Bxc5 8. Qc2 d4 9. Bf4 O-O 10. Ne5 Nxe5 11. Bxe5 Nd7 12. Bf4 e5 13. Bd2 a5 14. Na3 Bxa3 15. bxa3 Qe7 16. Rab1 {[%emt 1:14:00]} Qxa3 {[%emt 1:28:58]} 17. Rb5 {[%emt 0:00:30]} Qd6 {[%emt 0:00:30]} 18. Bxa5 {[%emt 0:00:30]} Re8 {[%emt 0:00:30]} 19. Rfb1 {[%emt 0:00:30]} Nf6 {[%emt 0:00:30]} 20. Bd2 {[%emt 0:00:30]} Qa3 {[%emt 0:00:30]} 21. R1b2 {[%emt 0:00:30]} Qa4 {[%emt 0:00:30]} 22. Qc1 {[%emt 0:00:30]} e4 {[%emt 0:00:30]} 23. Bg5 {[%emt 0:00:30]} Ra6 {[%emt 0:00:30]} 24. Bxf6 {[%emt 0:00:30]} Rxf6 {[%emt 0:00:30]} 25. Rd5 {[%emt 0:00:30]} e3 {[%emt 0:00:30]} 26. f4 {[%emt 0:00:30]} Qa3 {[%emt 0:02:56]} 27. Rxd4 {[%emt 0:07:03]} Rb6 {[%emt 0:00:54]} 28. Rc2 {[%emt 0:00:04]} Qxc1+ {[%emt 0:01:37]} 29. Rxc1 {[%emt 0:00:30]} Rb2 {[%emt 0:00:30]} 30. Bf3 {[%emt 0:00:30]} Rxa2 {[%emt 0:00:30]} 31. Kg2 {[%emt 0:00:51]} Rb2 {[%emt 0:02:00]} 32. c5 {[%emt 0:00:46]} g6 {[%emt 0:00:30]} 33. g4 {[%emt 0:02:38]} Kg7 {[%emt 0:00:35]} 34. Kg3 {[%emt 0:03:24]} Re7 {[%emt 0:00:55]} 35. Rc3 {[%emt 0:02:20]} Bd7 {[%emt 0:01:07]} 36. Rdd3 {[%emt 0:06:54]} Bc6 {[%emt 0:01:37]} 37. g5 {[%emt 0:00:30]} Rb5 {[%emt 0:00:48]} 38. Bxc6 {[%emt 0:02:42]} bxc6 {[%emt 0:00:30]} 39. Kf3 {[%emt 0:00:30]} h6 {[%emt 0:00:30]} 40. h4 {[%emt 0:00:30]} hxg5 {[%emt 0:00:30]} 41. hxg5 {[%emt 0:01:18]} f6 {[%emt 0:13:46]} 42. gxf6+ {[%emt 0:12:45]} Kxf6 {[%emt 0:00:06]} 43. Rd6+ {[%emt 0:01:23]} Kf5 {[%emt 0:09:46]} 44. Rd8 {[%emt 0:00:35]} Kf6 {[%emt 0:04:21]} 45. Rc4 {[%emt 0:01:40]} Re6 {[%emt 0:01:11]} 46. Rd1 {[%emt 0:06:49]} Rb8 {[%emt 0:01:26]} 47. Re4 {[%emt 0:05:32]} Rxe4 {[%emt 0:00:51]} 48. Kxe4 {[%emt 0:00:02]} Re8+ {[%emt 0:02:11]} 49. Kf3 {[%emt 0:00:30]} Re6 {[%emt 0:00:30]} 50. Rd3 {[%emt 0:00:00]} g5 {[%emt 0:00:44]} 51. fxg5+ {[%emt 0:00:53]} Kxg5 {[%emt 0:00:30]} 52. Rxe3 {[%emt 0:00:30]} Rh6 {[%emt 0:00:14]} 53. Ke4 {[%emt 0:02:44]} Kf6 {[%emt 0:00:44]} 54. Rd3 {[%emt 0:00:30]} Ke7 {[%emt 0:00:00]} 55. Kd4 {[%emt 0:01:11]} Rh4+ {[%emt 0:00:18]} 56. e4 {[%emt 0:00:41]} Rh5 {[%emt 0:01:12]} 57. Ra3 {[%emt 0:00:43]} Kd7 {[%emt 0:00:17]} 58. Ra7+ {[%emt 0:00:26]} Kd8 {[%emt 0:00:57]} 59. Rg7 {[%emt 0:00:00]} Kc8 {[%emt 0:00:36]} 60. Rf7 {[%emt 0:00:26]} Kd8 {[%emt 0:00:30]} 61. Rf5 {[%emt 0:00:30]} Rh6 {[%emt 0:00:00]} 62. Rg5 {[%emt 0:00:33]} Kd7 {[%emt 0:00:20]} 63. Rg7+ {[%emt 0:00:30]} Kd8 {[%emt 0:00:06]} 64. Ke5 {[%emt 0:00:17]} Rh5+ {[%emt 0:00:27]} 65. Ke6 {[%emt 0:02:56]} Rh6+ {[%emt 0:00:41]} 66. Kf5 {[%emt 0:00:02]} Rh5+ {[%emt 0:01:35]} 67. Rg5 {[%emt 0:00:04]} Rh6 {[%emt 0:00:14]} 68. e5 {[%emt 0:00:30]} Ke7 {[%emt 0:00:30]} 69. Rg7+ {[%emt 0:00:30]} Kd8 {[%emt 0:00:30]} 70. Rg6 {[%emt 0:00:30]} Rh5+ {[%emt 0:00:30]} 71. Ke6 {[%emt 0:00:30]} Kc7 {[%emt 0:00:28]} 72. Rg7+ {[%emt 0:00:00]} Kc8 {[%emt 0:00:21]} 73. Kd6 {[%emt 0:00:00]} Rh6+ {[%emt 0:00:13]} 74. e6 {[%emt 0:00:00]} Rf6 {[%emt 0:00:19]} 75. Rc7+ {[%emt 0:00:40]} Kd8 {[%emt 0:00:02]} 76. Rxc6 {[%emt 0:00:21]} Rf1 {[%emt 0:00:20]} 77. e7+ {[%emt 0:00:06]} 1-0

[Event "Turkish Super League 2019"]
[Site "Konya"]
[Date "2019.07.24"]
[Round "8"]
[White "Gulbas, Cemil"]
[Black "Gholami, Aryan"]
[Result "1/2-1/2"]
[ECO "B42"]
[WhiteElo "2380"]
[BlackElo "2532"]
[Annotator "RC"]
[PlyCount "74"]
[EventDate "2019.07.17"]
[EventType "team-tourn"]
[EventCountry "TUR"]
[SourceTitle "playchess.com"]
[Source "ChessBase"]
[SourceQuality "1"]
[TimeControl "40/5400+30:1800+30"]

1. e4 c5 2. Nf3 e6 3. d4 cxd4 4. Nxd4 a6 5. Bd3 g6 6. Nc3 Bg7 7. Nb3 Ne7 8. h4 h6 9. Qe2 Nbc6 10. Bd2 Qc7 11. f4 b5 12. h5 g5 13. g3 {[%emt 1:29:38]} Bb7 {[%emt 1:08:30]} 14. Rf1 {[%emt 0:00:30]} gxf4 {[%emt 0:00:30]} 15. gxf4 {[%emt 0:00:30]} Nd4 {[%emt 0:00:30]} 16. Nxd4 {[%emt 0:00:30]} Bxd4 {[%emt 0:00:30]} 17. a3 {[%emt 0:00:30]} Qb6 {[%emt 0:00:30]} 18. a4 {[%emt 0:00:30]} b4 {[%emt 0:00:30]} 19. a5 {[%emt 0:00:30]} Qc5 {[%emt 0:00:30]} 20. Nd1 {[%emt 0:00:30]} Nc6 {[%emt 0:00:30]} 21. c3 {[%emt 0:00:30]} bxc3 {[%emt 0:00:30]} 22. bxc3 {[%emt 0:00:30]} Bf6 {[%emt 0:00:30]} 23. Be3 {[%emt 0:00:30]} Bxc3+ {[%emt 0:00:30]} 24. Nxc3 {[%emt 0:00:30]} Qxc3+ {[%emt 0:00:30]} 25. Kf2 {[%emt 0:00:30]} Nb4 {[%emt 0:00:30]} 26. Rad1 {[%emt 0:00:30]} Qf6 {[%emt 0:00:30]} 27. Rh1 {[%emt 0:00:30]} Bc6 {[%emt 0:05:30]} 28. Bb1 {[%emt 0:00:59]} Rb8 {[%emt 0:00:30]} 29. Qd2 {[%emt 0:00:30]} Rg8 {[%emt 0:02:30]} 30. Bd4 {[%emt 0:00:49]} Qd8 {[%emt 0:01:54]} 31. Bc5 {[%emt 0:00:46]} Ba4 {[%emt 0:02:48]} 32. Rdg1 {[%emt 0:02:48]} Rxg1 {[%emt 0:00:30]} 33. Rxg1 {[%emt 0:00:30]} Qh4+ {[%emt 0:00:30]} 34. Ke3 {[%emt 0:01:41]} Qh3+ {[%emt 0:00:36]} 35. Kf2 {[%emt 0:00:30]} Qh4+ {[%emt 0:02:36]} 36. Ke3 {[%emt 0:00:14]} Qh3+ {[%emt 0:00:30]} 37. Kf2 {[%emt 0:00:30]} Qh4+ {[%emt 0:02:28]} 1/2-1/2

[Event "Turkish Super League 2019"]
[Site "Konya"]
[Date "2019.07.24"]
[Round "8"]
[White "Buksa, Nataliya"]
[Black "Osmak, Iulija"]
[Result "0-1"]
[ECO "C70"]
[WhiteElo "2379"]
[BlackElo "2395"]
[Annotator "NA"]
[PlyCount "112"]
[EventDate "2019.07.17"]
[EventType "team-tourn"]
[EventCountry "TUR"]
[SourceTitle "playchess.com"]
[Source "ChessBase"]
[SourceQuality "1"]
[TimeControl "40/5400+30:1800+30"]

1. e4 e5 2. Nf3 Nc6 3. Bb5 a6 4. Ba4 b5 5. Bb3 Na5 6. d4 exd4 7. Qxd4 Ne7 8. Bg5 d6 9. Qc3 {[%emt 1:20:08]} Nxb3 {[%emt 1:15:50]} 10. axb3 {[%emt 0:00:30]} Bb7 {[%emt 0:00:30]} 11. Nbd2 {[%emt 0:00:30]} f6 {[%emt 0:00:30]} 12. Be3 {[%emt 0:00:30]} c5 {[%emt 0:00:30]} 13. b4 {[%emt 0:00:30]} cxb4 {[%emt 0:00:30]} 14. Qxb4 {[%emt 0:00:30]} d5 {[%emt 0:00:30]} 15. e5 {[%emt 0:00:30]} Ng6 {[%emt 0:00:30]} 16. Qd4 {[%emt 0:00:30]} Be7 {[%emt 0:00:30]} 17. exf6 {[%emt 0:00:30]} Bxf6 {[%emt 0:00:30]} 18. Qb4 {[%emt 0:00:30]} Ne7 {[%emt 0:00:30]} 19. Nd4 {[%emt 0:00:30]} Bxd4 {[%emt 0:00:30]} 20. Qxd4 {[%emt 0:00:30]} O-O {[%emt 0:00:30]} 21. Qb6 {[%emt 0:00:30]} Qd7 {[%emt 0:00:30]} 22. Nb3 {[%emt 0:00:30]} Rf6 {[%emt 0:00:30]} 23. Nc5 {[%emt 0:00:30]} Rxb6 {[%emt 0:00:30]} 24. Nxd7 {[%emt 0:00:30]} Rg6 {[%emt 0:00:30]} 25. Nc5 {[%emt 0:05:04]} d4 {[%emt 0:01:43]} 26. Nxb7 {[%emt 0:00:30]} dxe3 {[%emt 0:00:00]} 27. fxe3 {[%emt 0:01:03]} Rxg2 {[%emt 0:00:40]} 28. O-O-O {[%emt 0:00:03]} Rf8 {[%emt 0:02:33]} 29. Rd2 {[%emt 0:07:02]} Rff2 {[%emt 0:01:07]} 30. Rxf2 {[%emt 0:00:30]} Rxf2 {[%emt 0:00:30]} 31. Nc5 {[%emt 0:00:30]} a5 {[%emt 0:00:45]} 32. Ne4 {[%emt 0:02:04]} Rg2 {[%emt 0:00:41]} 33. Nd6 {[%emt 0:00:30]} b4 {[%emt 0:01:09]} 34. b3 {[%emt 0:00:21]} g5 {[%emt 0:03:10]} 35. h3 {[%emt 0:00:30]} Nd5 {[%emt 0:03:57]} 36. Nc4 {[%emt 0:00:31]} Kg7 {[%emt 0:00:30]} 37. e4 {[%emt 0:00:30]} Nc3 {[%emt 0:00:30]} 38. e5 {[%emt 0:00:38]} Ne2+ {[%emt 0:02:38]} 39. Kb1 {[%emt 0:00:30]} Rg1+ {[%emt 0:00:30]} 40. Rxg1 {[%emt 0:00:30]} Nxg1 {[%emt 0:00:00]} 41. Nxa5 {[%emt 0:04:06]} Nxh3 {[%emt 0:02:47]} 42. Nc6 {[%emt 0:06:30]} Nf4 {[%emt 0:17:13]} 43. c4 {[%emt 0:11:57]} bxc3 {[%emt 0:02:07]} 44. b4 {[%emt 0:00:30]} Nd5 {[%emt 0:00:30]} 45. b5 {[%emt 0:00:00]} h5 {[%emt 0:05:17]} 46. Nd4 {[%emt 0:00:00]} h4 {[%emt 0:01:17]} 47. Kc2 {[%emt 0:02:58]} Kg6 {[%emt 0:04:07]} 48. e6 {[%emt 0:08:48]} Kf6 {[%emt 0:03:12]} 49. Nf3 {[%emt 0:00:30]} h3 {[%emt 0:00:30]} 50. b6 {[%emt 0:00:30]} Nxb6 {[%emt 0:00:24]} 51. Kxc3 {[%emt 0:00:57]} g4 {[%emt 0:00:30]} 52. e7 {[%emt 0:00:00]} Kxe7 {[%emt 0:01:34]} 53. Nd4 {[%emt 0:00:00]} h2 {[%emt 0:01:15]} 54. Nf5+ {[%emt 0:00:00]} Kf6 {[%emt 0:00:55]} 55. Ng3 {[%emt 0:00:03]} Ke5 {[%emt 0:00:01]} 56. Kd3 {[%emt 0:02:12]} Kf4 {[%emt 0:00:06]} 0-1

[Event "Turkish Super League 2019"]
[Site "Konya"]
[Date "2019.07.24"]
[Round "8"]
[White "Arat, Ufuk Sezen"]
[Black "Rozum, Ivan"]
[Result "0-1"]
[ECO "E01"]
[WhiteElo "2376"]
[BlackElo "2583"]
[Annotator "ChessBase"]
[PlyCount "66"]
[EventDate "2019.07.17"]
[EventType "team-tourn"]
[EventCountry "TUR"]
[SourceTitle "playchess.com"]
[Source "ChessBase"]
[SourceQuality "1"]
[TimeControl "40/5400+30:1800+30"]

1. d4 Nf6 2. c4 e6 3. g3 d5 4. Bg2 Bb4+ 5. Bd2 Bd6 6. Nc3 O-O 7. cxd5 exd5 8. Nxd5 Nxd5 9. Bxd5 Be7 10. Be4 Qxd4 11. Qc2 h6 12. Nf3 Qc5 13. Bc3 Nd7 14. Rc1 c6 15. Bh7+ Kh8 16. Bf5 {[%emt 1:27:54]} Kg8 {[%emt 1:14:00]} 17. Nh4 {[%emt 0:00:30]} Bf6 {[%emt 0:00:30]} 18. Bh7+ {[%emt 0:00:30]} Kh8 {[%emt 0:00:30]} 19. Qb1 {[%emt 0:00:30]} Qe7 {[%emt 0:00:30]} 20. Nf5 {[%emt 0:00:30]} Bxc3+ {[%emt 0:00:30]} 21. Rxc3 {[%emt 0:00:30]} Qf6 {[%emt 0:00:30]} 22. Nh4 {[%emt 0:00:30]} Ne5 {[%emt 0:00:30]} 23. f4 {[%emt 0:00:30]} Nd7 {[%emt 0:00:30]} 24. Bf5 {[%emt 0:00:30]} Nb6 {[%emt 0:00:30]} 25. e4 {[%emt 0:00:30]} Re8 {[%emt 0:00:30]} 26. e5 {[%emt 0:00:30]} Nd5 {[%emt 0:00:30]} 27. Rf3 {[%emt 0:00:30]} Nxf4 {[%emt 0:00:30]} 28. Rxf4 {[%emt 0:02:34]} Qxe5+ {[%emt 0:03:30]} 29. Kf2 {[%emt 0:03:00]} g5 {[%emt 0:05:29]} 30. Bxc8 {[%emt 0:02:29]} Qe2+ {[%emt 0:00:47]} 31. Kg1 {[%emt 0:00:30]} gxf4 {[%emt 0:02:27]} 32. Bh3 {[%emt 0:00:44]} Rad8 {[%emt 0:00:35]} 33. Bf1 {[%emt 0:00:45]} Rd1 {[%emt 0:00:30]} 0-1

[Event "Turkish Super League 2019"]
[Site "Konya"]
[Date "2019.07.24"]
[Round "8"]
[White "Tarlabasi, Emirhan"]
[Black "Lobanov, Sergei"]
[Result "1-0"]
[ECO "E52"]
[WhiteElo "2352"]
[BlackElo "2505"]
[Annotator "ChessBase"]
[PlyCount "27"]
[EventDate "2019.07.17"]
[EventType "team-tourn"]
[EventCountry "TUR"]
[SourceTitle "playchess.com"]
[Source "ChessBase"]
[SourceQuality "1"]
[TimeControl "40/5400+30:1800+30"]

1. d4 Nf6 2. c4 e6 3. Nc3 Bb4 4. Nf3 b6 5. e3 Bb7 6. Bd3 O-O 7. O-O d5 8. cxd5 exd5 9. Ne5 Nbd7 10. f4 c5 11. Ne2 c4 12. Bf5 b5 13. Bd2 Be7 14. Qe1 1-0

[Event "Turkish Super League 2019"]
[Site "Konya"]
[Date "2019.07.24"]
[Round "8"]
[White "Savina, Anastasia"]
[Black "Mammadzada, Gunay"]
[Result "0-1"]
[ECO "E52"]
[WhiteElo "2344"]
[BlackElo "2427"]
[Annotator "NA"]
[PlyCount "100"]
[EventDate "2019.07.17"]
[EventType "team-tourn"]
[EventCountry "TUR"]
[SourceTitle "playchess.com"]
[Source "ChessBase"]
[SourceQuality "1"]
[TimeControl "40/5400+30:1800+30"]

1. d4 Nf6 2. c4 e6 3. Nc3 Bb4 4. Nf3 O-O 5. Bd2 d5 6. e3 b6 7. cxd5 exd5 8. Bd3 Bb7 9. Qc2 a6 10. a3 Bd6 11. b4 Re8 {[%emt 1:15:38]} 12. O-O {[%emt 1:28:53]} Nbd7 {[%emt 0:00:30]} 13. b5 {[%emt 0:00:30]} a5 {[%emt 0:00:30]} 14. Ne2 {[%emt 0:00:30]} Ne4 {[%emt 0:00:30]} 15. Bc1 {[%emt 0:00:30]} g5 {[%emt 0:00:30]} 16. Ng3 {[%emt 0:00:30]} Qf6 {[%emt 0:00:30]} 17. Bb2 {[%emt 0:00:30]} h6 {[%emt 0:00:30]} 18. Nd2 {[%emt 0:00:30]} Qe6 {[%emt 0:00:30]} 19. Rae1 {[%emt 0:00:30]} Ndf6 {[%emt 0:03:04]} 20. Ndxe4 {[%emt 0:06:30]} dxe4 {[%emt 0:00:42]} 21. Bc4 {[%emt 0:00:53]} Bd5 {[%emt 0:00:41]} 22. Bxd5 {[%emt 0:00:13]} Nxd5 {[%emt 0:01:30]} 23. f3 {[%emt 0:00:42]} Bxg3 {[%emt 0:04:59]} 24. hxg3 {[%emt 0:00:05]} f5 {[%emt 0:04:04]} 25. f4 {[%emt 0:00:52]} gxf4 {[%emt 0:00:30]} 26. gxf4 {[%emt 0:00:35]} Kf7 {[%emt 0:00:56]} 27. Qe2 {[%emt 0:00:30]} Rg8 {[%emt 0:00:30]} 28. Rc1 {[%emt 0:00:37]} Qg6 {[%emt 0:01:31]} 29. Rc6 {[%emt 0:00:30]} Qg4 {[%emt 0:00:30]} 30. Qd2 {[%emt 0:00:30]} Rg6 {[%emt 0:01:55]} 31. Rxg6 {[%emt 0:00:34]} Qxg6 {[%emt 0:00:30]} 32. Rf2 {[%emt 0:00:30]} Qe6 {[%emt 0:00:30]} 33. Bc1 {[%emt 0:00:30]} Rg8 {[%emt 0:00:30]} 34. Qd1 {[%emt 0:00:30]} Rg4 {[%emt 0:00:30]} 35. Rc2 {[%emt 0:00:30]} Ke7 {[%emt 0:00:30]} 36. Qe2 {[%emt 0:00:28]} Rg8 {[%emt 0:04:49]} 37. Rc6 {[%emt 0:00:30]} Qf7 {[%emt 0:00:30]} 38. Qc2 {[%emt 0:00:30]} Rg6 {[%emt 0:00:30]} 39. Rxc7+ {[%emt 0:00:30]} Nxc7 {[%emt 0:00:30]} 40. Qxc7+ {[%emt 0:00:30]} Kf8 {[%emt 0:00:00]} 41. Qc8+ {[%emt 0:24:43]} Kg7 {[%emt 0:03:41]} 42. d5 {[%emt 0:00:45]} Qxd5 {[%emt 0:06:30]} 43. Bb2+ {[%emt 0:00:14]} Kf7 {[%emt 0:00:30]} 44. Qc7+ {[%emt 0:00:30]} Ke8 {[%emt 0:00:00]} 45. Qc8+ {[%emt 0:02:34]} Ke7 {[%emt 0:00:00]} 46. a4 {[%emt 0:01:11]} Qd7 {[%emt 0:06:47]} 47. Qh8 {[%emt 0:02:57]} Qd6 {[%emt 0:03:25]} 48. Be5 {[%emt 0:01:11]} Qd1+ {[%emt 0:01:43]} 49. Kh2 {[%emt 0:00:06]} Qg4 {[%emt 0:01:07]} 50. Bd6+ {[%emt 0:00:54]} Kd7 {[%emt 0:00:53]} 0-1

[Event "Turkish Super League 2019"]
[Site "Konya"]
[Date "2019.07.24"]
[Round "8"]
[White "Caglar, Sila"]
[Black "Ozturk, Kubra"]
[Result "0-1"]
[ECO "C54"]
[WhiteElo "2306"]
[BlackElo "2317"]
[Annotator "NA RC"]
[PlyCount "25"]
[EventDate "2019.07.17"]
[EventType "team-tourn"]
[EventCountry "TUR"]
[SourceTitle "playchess.com"]
[Source "ChessBase"]
[SourceQuality "1"]
[TimeControl "40/5400+30:1800+30"]

1. e4 e5 2. Nf3 Nc6 3. Bc4 Bc5 4. c3 Nf6 5. d3 O-O 6. Bg5 h6 7. Bh4 Be7 8. Nbd2 d6 9. a4 Nh5 10. g3 Bxh4 11. Nxh4 Nf4 12. Qf3 Ne6 13. O-O-O 0-1

[Event "Turkish Super League 2019"]
[Site "Konya"]
[Date "2019.07.24"]
[Round "8"]
[White "Maltsevskaya, Aleksandra"]
[Black "Daulyte-Cornette, Deimante"]
[Result "1-0"]
[ECO "A23"]
[WhiteElo "2294"]
[BlackElo "2444"]
[Annotator "NA"]
[PlyCount "79"]
[EventDate "2019.07.17"]
[EventType "team-tourn"]
[EventCountry "TUR"]
[SourceTitle "playchess.com"]
[Source "ChessBase"]
[SourceQuality "1"]
[TimeControl "40/5400+30:1800+30"]

1. c4 e5 2. Nc3 Nf6 3. g3 c6 4. Nf3 e4 5. Nd4 Qb6 6. Nc2 d5 7. Bg2 dxc4 8. O-O Be6 9. d3 {[%emt 1:16:13]} cxd3 {[%emt 1:19:28]} 10. exd3 {[%emt 0:00:30]} exd3 {[%emt 0:00:30]} 11. Qxd3 {[%emt 0:00:30]} Na6 {[%emt 0:00:30]} 12. Be3 {[%emt 0:00:30]} Nb4 {[%emt 0:00:30]} 13. Qe2 {[%emt 0:00:30]} Qa6 {[%emt 0:00:30]} 14. Qxa6 {[%emt 0:00:30]} Nxa6 {[%emt 0:00:30]} 15. Nd4 {[%emt 0:00:30]} Bc5 {[%emt 0:00:30]} 16. Nxe6 {[%emt 0:00:30]} fxe6 {[%emt 0:00:30]} 17. Bxc5 {[%emt 0:00:30]} Nxc5 {[%emt 0:00:30]} 18. b4 {[%emt 0:00:30]} Ncd7 {[%emt 0:00:30]} 19. b5 {[%emt 0:00:30]} Nd5 {[%emt 0:00:30]} 20. bxc6 {[%emt 0:00:30]} bxc6 {[%emt 0:00:30]} 21. Ne4 {[%emt 0:00:30]} Ke7 {[%emt 0:00:30]} 22. Rac1 {[%emt 0:00:30]} Rac8 {[%emt 0:00:30]} 23. Rfe1 {[%emt 0:00:30]} h6 {[%emt 0:00:30]} 24. Bh3 {[%emt 0:00:30]} Rhd8 {[%emt 0:00:30]} 25. Nd6 {[%emt 0:00:30]} Rc7 {[%emt 0:06:00]} 26. Rxe6+ {[%emt 0:01:24]} Kf8 {[%emt 0:00:06]} 27. Ne4 {[%emt 0:04:08]} Re8 {[%emt 0:05:20]} 28. Rexc6 {[%emt 0:06:19]} Rxc6 {[%emt 0:00:30]} 29. Rxc6 {[%emt 0:00:30]} Rxe4 {[%emt 0:00:30]} 30. Bxd7 {[%emt 0:01:38]} Ke7 {[%emt 0:00:14]} 31. Bf5 {[%emt 0:03:13]} Re1+ {[%emt 0:00:30]} 32. Kg2 {[%emt 0:00:30]} Nb4 {[%emt 0:02:24]} 33. Rg6 {[%emt 0:02:55]} Kf7 {[%emt 0:03:19]} 34. a3 {[%emt 0:00:30]} Nd5 {[%emt 0:00:30]} 35. Ra6 {[%emt 0:00:30]} Re7 {[%emt 0:00:30]} 36. Bg6+ {[%emt 0:00:30]} Kf8 {[%emt 0:00:30]} 37. Rd6 {[%emt 0:00:30]} Re5 {[%emt 0:00:30]} 38. f4 {[%emt 0:00:00]} Re2+ {[%emt 0:00:37]} 39. Kf3 {[%emt 0:00:00]} Rd2 {[%emt 0:00:30]} 40. Be4 {[%emt 0:00:23]} 1-0

[Event "Turkish Super League 2019"]
[Site "Konya"]
[Date "2019.07.24"]
[Round "8"]
[White "Yildiz Kadioglu, Betul Cemre"]
[Black "Dordzhieva, Dinara"]
[Result "1-0"]
[ECO "B22"]
[WhiteElo "2290"]
[BlackElo "2306"]
[Annotator "NA"]
[PlyCount "29"]
[EventDate "2019.07.17"]
[EventType "team-tourn"]
[EventCountry "TUR"]
[SourceTitle "playchess.com"]
[Source "ChessBase"]
[SourceQuality "1"]
[TimeControl "40/5400+30:1800+30"]

1. e4 c5 2. c3 d5 3. exd5 Qxd5 4. d4 Nf6 5. Nf3 Nc6 6. Be2 e6 7. O-O Be7 8. c4 Qd8 9. dxc5 Qxd1 10. Rxd1 Bxc5 11. Nc3 O-O 12. Bf4 b6 13. a3 Bb7 14. b4 Be7 15. Nb5 1-0

[Event "Turkish Super League 2019"]
[Site "Konya"]
[Date "2019.07.24"]
[Round "8"]
[White "Samani, Yamac"]
[Black "Secer, Ata"]
[Result "1/2-1/2"]
[ECO "B48"]
[WhiteElo "2266"]
[BlackElo "2324"]
[Annotator "NA"]
[PlyCount "34"]
[EventDate "2019.07.17"]
[EventType "team-tourn"]
[EventCountry "TUR"]
[SourceTitle "playchess.com"]
[Source "ChessBase"]
[SourceQuality "1"]
[TimeControl "40/5400+30:1800+30"]

1. e4 c5 2. Nf3 e6 3. d4 cxd4 4. Nxd4 Nc6 5. Nc3 Qc7 6. Be3 a6 7. Qf3 Bd6 8. O-O-O Be5 9. g3 Nge7 10. Qe2 O-O 11. f4 Bxd4 12. Bxd4 Nxd4 13. Rxd4 e5 14. fxe5 Nc6 15. Rd2 Nxe5 16. Kb1 b5 17. Bh3 Bb7 1/2-1/2

[Event "Turkish Super League 2019"]
[Site "Konya"]
[Date "2019.07.24"]
[Round "8"]
[White "Keler, Faruk"]
[Black "Kitir, Ahmet"]
[Result "1-0"]
[ECO "A04"]
[WhiteElo "2263"]
[BlackElo "2012"]
[Annotator "NA"]
[PlyCount "69"]
[EventDate "2019.07.17"]
[EventType "team-tourn"]
[EventCountry "TUR"]
[SourceTitle "playchess.com"]
[Source "ChessBase"]
[SourceQuality "1"]
[TimeControl "40/5400+30:1800+30"]

1. Nf3 f5 2. d3 e6 3. e4 fxe4 4. dxe4 Nc6 5. Bd3 b6 6. O-O Bb7 7. e5 Nb4 8. Be2 Qe7 9. c3 {[%emt 1:16:43]} Nc6 {[%emt 1:22:12]} 10. b4 {[%emt 0:00:30]} g6 {[%emt 0:00:30]} 11. b5 {[%emt 0:00:30]} Nd8 {[%emt 0:00:30]} 12. a4 {[%emt 0:00:30]} Qg7 {[%emt 0:00:30]} 13. a5 {[%emt 0:00:30]} Nf7 {[%emt 0:00:30]} 14. Be3 {[%emt 0:00:30]} Ne7 {[%emt 0:00:30]} 15. Nbd2 {[%emt 0:00:30]} Nd5 {[%emt 0:00:30]} 16. Bd4 {[%emt 0:00:30]} Nf4 {[%emt 0:00:30]} 17. axb6 {[%emt 0:00:30]} axb6 {[%emt 0:00:30]} 18. Rxa8+ {[%emt 0:00:30]} Bxa8 {[%emt 0:00:30]} 19. Bc4 {[%emt 0:00:30]} Be7 {[%emt 0:00:30]} 20. Re1 {[%emt 0:00:30]} g5 {[%emt 0:00:30]} 21. Ne4 {[%emt 0:00:30]} g4 {[%emt 0:00:30]} 22. Nfd2 {[%emt 0:00:30]} h5 {[%emt 0:01:22]} 23. Qa4 {[%emt 0:07:08]} O-O {[%emt 0:00:12]} 24. Qa7 {[%emt 0:02:18]} Ng5 {[%emt 0:02:32]} 25. Bf1 {[%emt 0:00:30]} Nxe4 {[%emt 0:00:30]} 26. Nxe4 {[%emt 0:00:30]} Qg6 {[%emt 0:00:30]} 27. Nf6+ {[%emt 0:01:16]} Bxf6 {[%emt 0:02:26]} 28. exf6 {[%emt 0:00:02]} Nh3+ {[%emt 0:03:40]} 29. Kh1 {[%emt 0:00:11]} Qc2 {[%emt 0:01:07]} 30. Qxc7 {[%emt 0:01:15]} Nxf2+ {[%emt 0:00:47]} 31. Kg1 {[%emt 0:00:17]} Ne4 {[%emt 0:02:51]} 32. Qxd7 {[%emt 0:00:30]} Rxf6 {[%emt 0:00:30]} 33. Qe8+ {[%emt 0:00:30]} Kh7 {[%emt 0:00:37]} 34. Qxa8 {[%emt 0:02:51]} Ng5 {[%emt 0:00:30]} 35. Bxf6 {[%emt 0:00:30]} 1-0

[Event "Turkish Super League 2019"]
[Site "Konya"]
[Date "2019.07.24"]
[Round "8"]
[White "Uysal, Burak"]
[Black "Heberla, Bartlomiej"]
[Result "1/2-1/2"]
[ECO "D35"]
[WhiteElo "2228"]
[BlackElo "2534"]
[Annotator "ChessBase"]
[PlyCount "29"]
[EventDate "2019.07.17"]
[EventType "team-tourn"]
[EventCountry "TUR"]
[SourceTitle "playchess.com"]
[Source "ChessBase"]
[SourceQuality "1"]
[TimeControl "40/5400+30:1800+30"]

1. d4 d5 2. c4 e6 3. Nc3 Nf6 4. cxd5 exd5 5. Bg5 c6 6. e3 Bd6 7. Bd3 O-O 8. Qc2 h6 9. Bh4 Re8 10. Nge2 a5 11. h3 Na6 12. a3 Nc7 13. O-O Ne6 14. Rad1 Ng5 15. f4 1/2-1/2